bitfinex/quotes_ETHUSD_20240701
["timestamp","ask_amount","ask_price","bid_price","bid_amount"]
[1719873539507,3.64404,3441.1,3440.4,2.90663]
[1719873539700,0.08870695,3440.5,3440.4,2.90663]
[1719873540310,3.94791402,3441.1,3440.4,2.85655202]
[1719873540494,0.08870695,3440.5,3440.4,2.85655202]
[1719873540818,0.30387402,3441.1,3440.5,2.90653]
[1719873541020,0.8978941,3441.0,3440.5,2.90653]
[1719873541188,0.5031187,3440.9,3440.5,2.90653]
[1719873541793,0.0890329,3440.8,3440.5,2.90653]
[1719873541994,0.5031187,3440.7,3440.5,2.90653]
[1719873542391,0.5031187,3441.0,3440.5,2.90653]
[1719873542809,0.0890329,3440.9,3440.5,2.90653]
[1719873543115,0.5031187,3440.8,3440.5,2.90653]
[1719873543313,0.0890329,3440.9,3440.5,2.90653]
[1719873543514,0.50312795,3440.8,3440.5,2.90653]
[1719873543813,0.50312795,3440.7,3440.5,2.90653]
[1719873544016,0.0890329,3440.8,3440.5,2.90653]
[1719873544017,0.3038658,3441.1,3440.5,2.90653]
[1719873544189,0.0890329,3440.6,3440.2,3.64477]
[1719873544529,0.39478358,3441.0,3440.4,2.90657]
[1719873544713,0.0890329,3440.5,3440.4,2.90657]
[1719873544913,0.3038658,3441.1,3440.4,2.90657]
[1719873545119,0.0890329,3440.5,3440.4,2.90657]
[1719873545314,0.3038658,3441.1,3440.4,2.90657]
[1719873545479,0.0890539,3440.5,3440.4,2.90657]
[1719873545683,0.3038658,3441.1,3440.4,2.90657]
[1719873545884,0.0890539,3440.5,3440.4,2.90657]
[1719873546180,0.0890539,3440.5,3440.4,8.360004]
[1719873546518,10.38563,3441.6,3440.9,2.90619]
[1719873546683,2.61597135,3441.5,3440.9,2.90619]
[1719873546884,0.08315284,3441.5,3440.9,2.90619]
[1719873547078,2.61589415,3441.4,3440.6,3.64439]
[1719873547312,0.50305656,3441.3,3440.8,2.90628]
[1719873547492,0.50305656,3441.2,3440.8,2.90628]
[1719873547692,0.08315284,3441.2,3440.8,2.90628]
[1719873548125,0.50306416,3441.1,3440.6,3.64439]
[1719873548348,0.08315284,3441.1,3440.6,3.64439]
[1719873548482,0.08315284,3441.1,3440.4,5.90661]
[1719873548483,0.08315284,3441.1,3440.4,2.90661]
[1719873548683,0.503102,3441.0,3440.4,2.90661]
[1719873548913,0.503102,3440.9,3440.4,2.90661]
[1719873549282,0.08324508,3440.8,3440.4,2.90661]
[1719873549897,3.27880228,3441.1,3440.4,2.90661]
[1719873550099,0.08324508,3440.7,3440.2,2.90678]
[1719873550297,2.90624,3440.9,3440.2,2.90678]
[1719873550525,2.90624,3440.9,3439.6,4.7983]
[1719873550526,3.64464,3440.4,3439.3,2.90755]
[1719873550827,3.64464,3440.4,3439.4,2.90747]
[1719873550828,3.6448,3440.2,3439.4,2.90747]
[1719873551027,0.50312219,3440.1,3439.4,2.90747]
[1719873551223,0.08319501,3440.0,3439.4,2.90747]
[1719873551530,2.99019501,3440.0,3439.1,2.90773]
[1719873551733,2.99019501,3440.0,3439.2,1.61955]
[1719873551880,2.99019501,3440.0,3439.2,4.61955]
[1719873552091,2.99019501,3440.0,3439.3,3.0]
[1719873552502,2.90706,3439.9,3439.2,4.61955]
[1719873552902,0.08310011,3439.8,3439.2,4.61955]
[1719873553121,0.08310011,3439.8,3439.3,1.043505]
[1719873553339,0.08310011,3439.8,3439.3,4.043505]
[1719873553493,0.08310011,3439.8,3439.4,3.64546]
[1719873553690,2.9069,3440.1,3439.4,3.64546]
[1719873553905,0.08298408,3439.7,3439.4,2.90746]
[1719873554129,2.9069,3440.1,3439.4,3.9814725]
[1719873554322,0.08298408,3439.6,3439.4,3.9814725]
[1719873554638,0.08298408,3439.5,3439.4,3.9814725]
[1719873554997,2.9069,3440.1,3439.4,3.9814725]
[1719873555200,7.21756523,3440.0,3439.0,2.90775]
[1719873555434,2.90721,3439.8,3439.0,2.90775]
[1719873555596,0.50324587,3439.7,3439.0,2.90775]
[1719873555800,0.08306054,3439.6,3438.8,2.90798]
[1719873555996,0.08306054,3439.6,3439.0,2.90781]
[1719873559610,2.90723,3439.7,3439.0,2.90781]
[1719873559830,0.08294454,3439.4,3439.0,2.90781]
[1719873560102,2.90723,3439.7,3439.0,2.90781]
[1719873560301,0.08294454,3439.3,3439.0,2.90781]
[1719873560506,2.90723,3439.7,3439.0,2.90781]
[1719873560734,0.08294454,3439.2,3439.0,2.90781]
[1719873560940,2.90723,3439.7,3439.0,2.90781]
[1719873561144,0.50329657,3439.6,3439.0,2.90781]
[1719873561304,0.08294454,3439.6,3439.0,2.90781]
[1719873562220,2.99026454,3439.6,3438.8,2.90798]
[1719873562731,2.99026454,3439.6,3438.9,2.9079]
[1719873562930,2.99026454,3439.6,3438.9,3.951323]
[1719873566356,2.99026454,3439.6,3439.0,2.90782]
[1719873566941,0.08294454,3439.6,3439.0,2.96597251]
[1719873567153,0.08294454,3439.6,3439.2,2.90763]
[1719873567355,7.42469,3440.0,3439.2,2.90763]
[1719873567356,2.90706,3439.9,3439.2,2.90763]
[1719873567655,2.69708696,3439.8,3439.2,2.90763]
[1719873567826,0.5032909,3439.7,3439.2,2.90763]
[1719873568027,8.55631428,3440.0,3439.2,2.90763]
[1719873568227,2.69708548,3439.9,3439.2,2.90763]
[1719873568470,2.61711224,3439.8,3439.2,2.90763]
[1719873568759,0.50329085,3439.7,3439.2,2.90763]
[1719873568960,8.55631428,3440.0,3439.2,2.90763]
[1719873569163,0.07997324,3439.6,3439.2,2.90763]
[1719873569557,7.42467,3440.0,3439.2,3.26913216]
[1719873569766,0.07997324,3439.5,3439.2,3.26913216]
[1719873569963,7.42467,3440.0,3439.3,2.90756]
[1719873570138,0.07997324,3439.4,3439.3,2.90756]
[1719873570343,7.42467,3440.0,3439.3,2.90756]
[1719873570543,0.07997324,3439.4,3439.3,2.90756]
[1719873570739,7.42467,3440.0,3439.3,2.90756]
[1719873570942,0.07997324,3439.4,3439.3,2.90756]
[1719873571127,4.5177,3440.0,3439.3,3.489079]
[1719873571332,0.07997324,3439.4,3439.3,2.90756]
[1719873571532,4.5177,3440.0,3439.3,2.90756]
[1719873571835,2.61711232,3439.9,3439.3,2.90756]
[1719873572045,2.69708556,3439.8,3439.3,2.90756]
[1719873572249,0.50329083,3439.7,3439.3,2.90756]
[1719873572950,0.07997324,3439.6,3439.3,2.90756]
[1719873573143,0.07997324,3439.6,3439.3,3.489089]
[1719873573374,7.42469,3440.0,3439.3,3.489089]
[1719873573551,2.61711203,3439.9,3439.3,2.90756]
[1719873573891,2.61711203,3439.8,3439.3,2.90756]
[1719873574175,0.50329077,3439.7,3439.3,2.90756]
[1719873574347,0.50329077,3439.8,3439.3,2.90756]
[1719873574546,0.07997324,3439.6,3439.3,2.90756]
[1719873574758,7.42469,3440.0,3439.3,2.90756]
[1719873574966,0.50329081,3439.9,3439.3,2.90756]
[1719873575163,2.69708549,3439.9,3439.3,2.90756]
[1719873575373,2.61711225,3439.8,3439.3,2.90756]
[1719873575671,0.50329081,3439.7,3439.3,2.90756]
[1719873575873,0.07997324,3439.7,3439.3,2.90756]
[1719873576068,0.50329081,3439.6,3439.3,2.90756]
[1719873576497,0.07997324,3439.5,3439.3,2.90756]
[1719873576841,0.737,3439.9,3439.3,3.489089]
[1719873577089,2.69708582,3439.8,3439.3,3.489089]
[1719873577374,0.50329088,3439.7,3439.3,3.489089]
[1719873577572,0.50329088,3439.6,3439.3,3.489089]
[1719873577738,0.50329088,3439.7,3439.3,3.489089]
[1719873577935,0.07997324,3439.5,3439.3,3.489089]
[1719873578171,4.5177,3440.0,3439.4,0.6396819]
[1719873578484,4.5177,3440.0,3439.3,2.90756]
[1719873578485,3.35411072,3439.9,3439.3,2.90756]
[1719873578642,4.5177,3440.0,3439.0,2.90779]
[1719873578643,0.737,3439.7,3439.0,2.90779]
[1719873578838,0.50329084,3439.6,3439.2,2.90759]
[1719873581370,0.737,3439.7,3439.2,2.90759]
[1719873581575,0.50329437,3439.5,3439.2,2.90759]
[1719873581777,0.50329437,3439.4,3439.2,2.90759]
[1719873581979,0.50329437,3439.6,3439.2,2.90759]
[1719873582190,0.50329437,3439.5,3439.2,2.90759]
[1719873582340,0.50329437,3439.6,3439.2,2.90759]
[1719873582548,0.50329437,3439.7,3439.2,3.79871344]
[1719873582744,0.50329437,3439.6,3439.2,3.79871344]
[1719873582981,0.50329437,3439.7,3439.2,3.79871344]
[1719873584378,2.11384082,3439.6,3439.2,3.79871344]
[1719873585777,2.11384082,3439.6,3439.2,0.89112344]
[1719873586380,2.11384082,3439.6,3439.0,2.90776]
[1719873586745,2.11384082,3439.6,3439.1,2.90773]
[1719873586946,0.07998381,3439.5,3439.1,2.90773]
[1719873589180,0.07998381,3439.5,3438.9,7.64535]
[1719873589384,2.90723,3439.7,3439.0,2.90782]
[1719873589559,0.07998381,3439.4,3439.0,2.90782]
[1719873589770,2.90723,3439.7,3439.0,2.90782]
[1719873589771,2.90723,3439.7,3439.0,4.036847]
[1719873589975,0.07998381,3439.3,3439.0,4.036847]
[1719873590286,0.07998381,3439.2,3439.0,4.036847]
[1719873590677,2.90723,3439.7,3439.0,4.036847]
[1719873591188,0.07998381,3439.6,3439.0,4.036847]
[1719873591376,0.07998381,3439.6,3439.1,1.2419297]
[1719873591577,0.07998381,3439.6,3439.1,4.1496597]
[1719873594176,0.07998381,3439.6,3439.1,1.2419297]
[1719873594377,0.737,3439.5,3438.8,2.90793]
[1719873594782,0.07993371,3439.4,3438.8,2.90793]
[1719873596516,0.07993371,3439.4,3438.6,4.6618]
[1719873596664,2.90767,3439.2,3438.5,2.90824]
[1719873596991,5.02186515,3439.1,3438.5,1.036514]
[1719873597295,3.72462623,3439.1,3438.3,2.9084]
[1719873597496,3.72462623,3439.1,3438.4,0.55]
[1719873597718,2.90798,3438.9,3438.2,0.737]
[1719873598061,0.0798783,3438.8,3438.2,0.737]
[1719873598580,0.0798783,3438.8,3438.2,3.737]
[1719873598784,0.0798783,3438.8,3438.3,1.11941]
[1719873599800,2.90808,3438.7,3438.2,3.0]
[1719873600164,0.07975697,3438.6,3438.2,3.0]
[1719873600661,0.07975697,3438.6,3438.1,4.5486]
[1719873600863,0.07975697,3438.6,3437.8,2.9088]
[1719873601096,0.07975697,3438.6,3437.9,3.55]
[1719873601298,2.98795697,3438.6,3437.9,3.55]
[1719873601670,2.90825,3438.5,3437.9,3.0]
[1719873602166,0.07960924,3438.4,3437.9,3.0]
[1719873606296,0.07960924,3438.4,3437.8,2.073629]
[1719873606612,2.98795924,3438.4,3437.8,3.0]
[1719873606811,2.98795924,3438.4,3437.7,5.90892]
[1719873607618,2.98795924,3438.4,3437.7,3.0]
[1719873607798,2.98795924,3438.4,3437.6,3.737]
[1719873607997,2.98795924,3438.4,3437.7,3.0]
[1719873608817,3.41193116,3438.3,3437.7,3.0]
[1719873608983,0.07943507,3438.2,3437.7,3.0]
[1719873610078,2.98794507,3438.2,3437.7,3.0]
[1719873610283,4.6554,3438.1,3437.5,3.0]
[1719873610696,0.07941924,3438.0,3437.5,3.0]
[1719873610932,0.07941924,3438.0,3437.5,3.955549]
[1719873611096,0.07941924,3438.0,3437.5,4.692549]
[1719873611486,2.9085,3438.2,3437.5,7.601629]
[1719873611703,0.07941924,3437.9,3437.5,7.601629]
[1719873611904,2.9085,3438.2,3437.5,7.601629]
[1719873612102,0.07941924,3437.8,3437.6,1.0510789]
[1719873612296,2.90841,3438.3,3437.6,3.9600789]
[1719873612911,0.07941924,3438.2,3437.6,3.9600789]
[1719873614493,2.98792924,3438.2,3437.6,3.9600789]
[1719873615009,0.07941924,3438.2,3437.6,3.9600789]
[1719873615212,2.90842,3438.3,3437.7,1.06062389]
[1719873615410,0.07941397,3438.2,3437.7,1.06062389]
[1719873619518,4.6554,3438.4,3437.7,1.06062389]
[1719873619725,0.07927144,3438.1,3437.7,1.06062389]
[1719873619938,2.90841,3438.3,3437.7,1.06062389]
[1719873620229,0.07927144,3438.0,3437.7,1.06062389]
[1719873620531,0.07927144,3437.9,3437.8,0.77066239]
[1719873620731,2.90843,3438.3,3437.8,0.77066239]
[1719873620918,0.07927672,3437.9,3437.7,2.90891]
[1719873621232,0.079282,3437.8,3437.7,2.90891]
[1719873621432,2.90843,3438.3,3437.7,2.90891]
[1719873621735,0.079282,3438.2,3437.7,2.90891]
[1719873622824,0.07929784,3438.1,3437.7,2.90891]
[1719873623139,7.56374,3438.4,3437.7,3.864415]
[1719873623304,0.07929784,3438.0,3437.7,3.864415]
[1719873623499,2.90842,3438.3,3437.7,3.864415]
[1719873623710,0.07929784,3437.9,3437.7,2.90891]
[1719873623934,2.90842,3438.3,3437.7,2.90891]
[1719873624123,0.07929256,3437.8,3437.7,2.90891]
[1719873624443,2.90842,3438.3,3437.7,2.90891]
[1719873624618,7.56374,3438.4,3437.7,2.90891]
[1719873624619,0.07929256,3437.8,3437.7,2.90891]
[1719873624818,7.56374,3438.4,3437.7,3.53292359]
[1719873624996,0.50350416,3438.3,3437.7,3.53292359]
[1719873625194,0.50350416,3438.2,3437.7,3.53292359]
[1719873625404,0.50350416,3438.1,3437.7,3.53292359]
[1719873625606,0.5035057,3438.0,3437.5,5.90902]
[1719873625813,0.07929256,3437.9,3437.6,2.90899]
[1719873626214,3.64541,3438.3,3437.6,2.90899]
[1719873626414,0.07929256,3437.8,3437.6,2.90899]
[1719873626608,3.64541,3438.3,3437.6,2.90899]
[1719873626935,0.50350881,3438.2,3437.6,2.90899]
[1719873627135,0.50350881,3438.1,3437.6,2.90899]
[1719873627331,0.50350881,3438.0,3437.6,2.90899]
[1719873627532,3.64541,3438.3,3437.6,2.90899]
[1719873627738,0.07929256,3437.9,3437.6,2.90899]
[1719873628033,2.90841,3438.3,3437.6,2.90899]
[1719873628237,0.07929256,3437.8,3437.6,2.90899]
[1719873628408,2.90841,3438.3,3437.7,0.737]
[1719873628601,0.50350696,3438.2,3437.7,0.737]
[1719873628811,0.50350696,3438.1,3437.7,0.737]
[1719873629031,0.50350696,3438.0,3437.7,0.737]
[1719873629241,0.50350696,3438.2,3437.7,0.737]
[1719873629832,0.50350696,3438.2,3437.7,3.64591]
[1719873630153,0.50350696,3438.2,3438.1,0.737]
[1719873630361,3.41160696,3438.7,3438.1,0.737]
[1719873630509,0.50350696,3438.6,3438.1,0.737]
[1719873630712,10.25373,3438.8,3438.1,3.64557]
[1719873630921,0.50345293,3438.5,3438.1,3.64557]
[1719873631219,11.75807656,3438.8,3438.1,2.90857]
[1719873631220,0.50345293,3438.4,3438.1,2.90857]
[1719873631438,0.50345293,3438.3,3438.1,2.90857]
[1719873631628,0.50345293,3438.2,3438.1,2.90857]
[1719873631822,0.61250416,3438.2,3438.1,2.90857]
[1719873634111,0.61250069,3438.2,3438.1,2.90857]
[1719873634620,0.61250069,3438.2,3437.9,3.64569]
[1719873634828,0.50344946,3438.1,3438.0,2.90864]
[1719873635145,0.50344946,3438.1,3437.9,0.737]
[1719873635442,0.61250599,3438.0,3437.9,2.90874]
[1719873637220,0.10905653,3438.0,3437.9,2.90874]
[1719873637415,0.61251781,3438.0,3437.9,2.90874]
[1719873637728,0.6125178,3438.0,3437.9,2.90874]
[1719873640362,0.61251892,3438.0,3437.9,2.90874]
[1719873643572,0.61252178,3438.0,3437.9,2.90874]
[1719873646650,0.10905653,3438.0,3437.9,2.90874]
[1719873646833,0.61251972,3438.0,3437.9,2.90874]
[1719873647026,0.50346319,3438.0,3437.9,2.90874]
[1719873647256,0.61255403,3438.0,3437.9,2.90874]
[1719873647661,0.10909084,3438.0,3437.9,11.879805]
[1719873647964,7.48,3438.6,3438.2,2.90843]
[1719873648172,0.50341685,3438.5,3438.2,3.64543]
[1719873648372,0.50341685,3438.4,3438.2,4.2735504]
[1719873648555,0.50341685,3438.3,3438.2,4.2735504]
[1719873648878,0.50341685,3438.4,3438.2,4.2735504]
[1719873649047,0.50341685,3438.3,3438.2,4.2735504]
[1719873649239,0.50341685,3438.5,3438.2,4.2735504]
[1719873650364,7.48,3438.6,3438.2,4.2735504]
[1719873650867,0.50342122,3438.5,3438.2,4.2735504]
[1719873651035,0.50342122,3438.4,3438.3,0.71821704]
[1719873651235,0.50342122,3438.4,3438.2,3.64543]
[1719873651568,2.90792,3438.9,3438.2,3.64543]
[1719873651735,0.50342123,3438.8,3438.2,3.64543]
[1719873652067,0.50342123,3438.7,3438.2,3.64543]
[1719873652267,0.50342123,3438.6,3438.2,3.64543]
[1719873652468,0.50342123,3438.5,3438.2,3.64543]
[1719873652668,0.50342123,3438.4,3438.2,3.64543]
[1719873652864,2.90792,3438.9,3438.2,2.90843]
[1719873653067,1.97304978,3438.8,3438.2,2.90843]
[1719873653243,0.50343357,3438.7,3438.2,2.90843]
[1719873653465,0.50343357,3438.6,3438.2,2.90843]
[1719873653639,0.50343357,3438.5,3438.2,2.90843]
[1719873653869,0.50343357,3438.4,3438.2,2.90843]
[1719873654168,0.50343357,3438.3,3438.2,2.90843]
[1719873655769,0.50343357,3438.3,3437.9,3.0]
[1719873656069,0.50343357,3438.2,3437.9,3.0]
[1719873656268,0.50343357,3438.5,3437.9,3.0]
[1719873656479,4.6451,3438.6,3437.9,3.0]
[1719873656771,3.41169633,3438.5,3437.9,3.0]
[1719873656937,0.50345633,3438.4,3437.9,3.0]
[1719873657137,2.61797204,3438.3,3437.9,3.0]
[1719873657370,2.61797204,3438.2,3437.9,3.0]
[1719873657568,2.83439814,3438.1,3437.9,3.0]
[1719873657774,0.2164261,3438.0,3437.9,3.0]
[1719873658578,2.1144931,3438.0,3437.9,3.0]
[1719873658780,2.1144931,3438.1,3437.9,3.0]
[1719873658958,2.1144931,3438.0,3437.9,3.0]
[1719873659858,0.21639286,3438.0,3437.9,3.0]
[1719873660059,2.33093434,3438.0,3437.9,3.0]
[1719873660370,2.33090622,3438.0,3437.9,3.0]
[1719873660575,2.33090622,3438.0,3437.9,4.403858]
[1719873661375,2.83441142,3438.0,3437.8,2.90878]
[1719873661558,2.33094311,3437.9,3437.8,3.64578]
[1719873661871,2.33094311,3437.9,3437.8,2.90878]
[1719873662074,2.83441662,3437.9,3437.4,3.0]
[1719873662277,2.83459007,3437.8,3437.5,3.64607]
[1719873662478,0.21639286,3437.7,3437.6,5.909]
[1719873662769,2.90832,3438.4,3437.7,5.5289]
[1719873662946,2.83426833,3438.3,3437.7,5.5289]
[1719873663147,2.83426833,3438.2,3437.7,7.0975268]
[1719873663351,2.83426833,3438.1,3437.7,7.0975268]
[1719873663679,2.83426833,3438.0,3437.7,7.0975268]
[1719873663972,2.33077801,3437.9,3437.7,7.0975268]
[1719873664172,2.90841,3438.3,3437.7,7.0975268]
[1719873664372,2.83432025,3438.2,3437.7,0.737]
[1719873664582,2.83432025,3438.1,3437.7,0.737]
[1719873664747,2.90841,3438.3,3437.7,0.737]
[1719873664748,2.83432025,3438.0,3437.7,0.737]
[1719873664947,2.83432025,3437.9,3437.7,0.737]
[1719873665147,2.3308547,3437.8,3437.7,0.737]
[1719873665480,2.33095094,3437.8,3437.7,0.737]
[1719873665991,2.83444115,3437.8,3437.3,2.90922]
[1719873666204,2.83444115,3437.7,3437.4,3.0]
[1719873666500,2.33095094,3437.6,3437.4,3.0]
[1719873666651,0.21629866,3437.5,3437.4,3.0]
[1719873666995,0.21629866,3437.9,3437.4,3.0]
[1719873667161,2.61836339,3437.8,3437.3,0.737]
[1719873667365,2.83466205,3437.7,3437.3,0.737]
[1719873667677,2.90869,3438.0,3437.3,0.737]
[1719873667678,2.33113063,3437.6,3437.3,0.737]
[1719873667997,2.33113063,3437.5,3437.3,0.737]
[1719873668167,2.90869,3438.0,3437.3,0.737]
[1719873668366,0.21593101,3437.9,3437.3,0.737]
[1719873668595,2.61836952,3437.8,3437.5,0.737]
[1719873668795,2.33076793,3437.7,3437.5,0.737]
[1719873669123,2.33076793,3437.6,3437.5,0.737]
[1719873671694,2.33075982,3437.6,3437.5,0.737]
[1719873672225,2.11482941,3437.6,3437.5,0.737]
[1719873672390,2.11482941,3438.0,3437.5,1.692537]
[1719873672593,2.83446526,3437.9,3437.7,0.737]
[1719873672787,2.83446526,3437.8,3437.7,0.737]
[1719873673503,0.21610684,3437.8,3437.7,8.08792]
[1719873673731,7.48,3438.1,3437.9,2.90875]
[1719873673936,2.3308338,3438.0,3437.9,2.90875]
[1719873674418,2.3308338,3438.0,3437.9,3.64575]
[1719873674915,2.33083224,3438.0,3437.9,3.64575]
[1719873678232,2.33077734,3438.0,3437.9,3.64575]
[1719873681528,7.48,3438.6,3438.3,2.90833]
[1719873681747,2.83435282,3438.5,3438.4,3.64532]
[1719873682035,2.83435282,3438.5,3438.4,6.55364]
[1719873682238,2.83432862,3438.5,3438.4,7.681294]
[1719873683193,2.33091477,3438.5,3438.4,7.681294]
[1719873683394,2.83432694,3438.5,3438.4,7.681294]
[1719873683645,2.83432656,3438.5,3438.4,6.55364]
[1719873684348,2.33090553,3438.5,3438.4,6.55364]
[1719873684734,0.21657496,3438.5,3438.4,6.55364]
[1719873684925,3.24759808,3439.0,3438.6,2.90815]
[1719873685125,2.83432158,3438.9,3438.6,2.90815]
[1719873685335,2.83432158,3438.8,3438.6,2.90815]
[1719873685530,2.83432158,3438.7,3438.6,2.90815]
[1719873686031,2.83432158,3438.7,3438.5,2.90822]
[1719873686346,2.83432158,3438.6,3438.5,2.90822]
[1719873687348,2.83432158,3438.6,3438.0,2.90863]
[1719873687523,2.33092427,3438.5,3438.2,2.90847]
[1719873687858,2.90791,3438.9,3438.2,2.90847]
[1719873687859,2.33092427,3438.4,3438.2,2.90847]
[1719873688015,0.21657879,3438.3,3438.2,2.90847]
[1719873688216,0.21657879,3438.8,3438.2,2.90847]
[1719873688416,2.61778393,3438.7,3438.2,2.90847]
[1719873688649,2.83436272,3438.6,3438.2,2.90847]
[1719873688825,2.83436272,3438.5,3438.2,2.90847]
[1719873689027,2.33094274,3438.4,3438.2,2.90847]
[1719873689233,0.21657879,3438.3,3438.2,2.90847]
[1719873689739,2.90782,3439.0,3438.3,2.90838]
[1719873689925,2.83428594,3438.9,3438.5,2.90821]
[1719873690246,2.83428594,3438.8,3438.5,2.90821]
[1719873690453,2.83428594,3438.7,3438.5,2.90821]
[1719873690651,0.2165263,3438.6,3438.5,2.90821]
[1719873690818,2.8342799,3438.6,3438.5,2.90821]
[1719873693888,2.33086575,3438.6,3438.5,2.90821]
[1719873694172,2.83428431,3438.6,3438.5,2.90821]
[1719873694319,0.2165263,3438.6,3438.5,2.90821]
[1719873694515,2.11434269,3438.6,3438.5,2.90821]
[1719873694763,0.71994122,3438.6,3438.5,2.90821]
[1719873694930,2.83428391,3438.6,3438.5,2.90821]
[1719873697123,2.83428103,3438.6,3438.5,2.90821]
[1719873698671,2.83428103,3438.6,3438.4,2.90825]
[1719873698879,2.33086666,3438.5,3438.4,2.90825]
[1719873700274,0.7199414,3438.5,3438.4,2.90825]
[1719873700586,3.33769983,3438.5,3438.4,2.90825]
[1719873702659,2.83428473,3438.5,3438.4,2.90825]
[1719873703455,0.2165263,3438.5,3438.4,2.90825]
[1719873703680,0.2165263,3438.5,3438.4,5.8165]
[1719873703877,2.61775926,3438.5,3438.4,2.90824]
[1719873704087,2.83428556,3438.5,3438.4,2.90824]
[1719873705365,0.2165263,3438.5,3438.4,2.90824]
[1719873705563,12.0385,3439.1,3438.5,2.90819]
[1719873705765,4.32885517,3439.0,3438.5,2.90819]
[1719873705966,2.83423517,3438.9,3438.5,2.90819]
[1719873706158,2.83423517,3438.8,3438.5,2.90819]
[1719873706358,2.83434686,3438.7,3438.5,2.90819]
[1719873706559,0.21675337,3438.6,3438.5,2.90819]
[1719873706760,0.72014276,3438.9,3438.5,2.90819]
[1719873706964,0.21675337,3438.8,3438.5,2.90819]
[1719873707167,2.83437815,3438.7,3438.5,2.90819]
[1719873707366,0.72014275,3438.6,3438.5,2.90819]
[1719873709864,0.7201437,3438.6,3438.5,2.90819]
[1719873710673,0.72014694,3438.6,3438.5,2.90819]
[1719873713290,0.72014725,3438.6,3438.5,2.90819]
[1719873713863,2.83440158,3438.6,3438.5,2.90819]
[1719873716389,0.21675337,3438.6,3438.5,2.90819]
[1719873716694,12.0385,3439.1,3438.6,2.90814]
[1719873716887,2.83413145,3439.0,3438.6,2.90814]
[1719873717216,12.0385,3439.1,3438.6,2.90814]
[1719873717217,2.83413145,3438.9,3438.6,2.90814]
[1719873717496,2.83413145,3438.8,3438.7,2.90807]
[1719873719625,0.21661158,3438.8,3438.7,2.90807]
[1719873719782,2.83410913,3438.8,3438.7,2.90807]
[1719873720114,2.83410792,3438.8,3438.7,2.90807]
[1719873721897,2.83410792,3438.8,3438.4,2.90829]
[1719873722098,2.83410857,3438.7,3438.5,2.90823]
[1719873722319,2.33074377,3438.6,3438.5,2.90823]
[1719873722469,2.83410857,3438.6,3438.5,2.90823]
[1719873722871,2.83413907,3438.6,3438.5,2.90823]
[1719873725105,0.21661158,3438.6,3438.5,2.90823]
[1719873725309,2.11415988,3438.6,3438.5,2.90823]
[1719873725487,2.83414287,3438.6,3438.5,2.90823]
[1719873725887,2.83414287,3438.6,3438.5,3.64523]
[1719873726475,2.83414287,3438.6,3438.5,11.836422]
[1719873728271,0.21661158,3438.6,3438.5,7.208822]
[1719873728478,0.71997807,3439.0,3438.7,2.90806]
[1719873728678,2.83395282,3438.9,3438.7,2.90806]
[1719873728889,2.83395282,3438.8,3438.7,2.90806]
[1719873729183,2.83395282,3438.8,3438.5,3.64517]
[1719873729383,2.83395282,3438.7,3438.5,3.64517]
[1719873729598,2.83395282,3438.6,3438.5,3.64517]
[1719873731413,0.21644636,3438.6,3438.5,3.64517]
[1719873731600,2.83395874,3438.6,3438.5,3.64517]
[1719873731793,0.21644636,3438.6,3438.5,3.64517]
[1719873731989,2.83395869,3438.6,3438.5,3.64517]
[1719873734614,0.71981482,3438.6,3438.5,3.94577728]
[1719873735194,2.83396238,3438.6,3438.5,3.94577728]
[1719873736084,2.83395789,3438.6,3438.5,3.94577728]
[1719873736487,2.83395789,3438.6,3438.5,6.91217813]
[1719873736683,2.83395789,3438.6,3438.5,7.40401728]
[1719873736907,2.83395789,3438.6,3438.5,6.66701728]
[1719873737217,2.83395789,3438.6,3438.5,6.36641]
[1719873737425,2.83395789,3438.6,3438.5,6.55341]
[1719873738027,2.83394322,3438.6,3438.5,6.55341]
[1719873741012,0.21644636,3438.6,3438.5,6.55341]
[1719873741204,2.83393559,3438.6,3438.5,3.64517]
[1719873743538,2.83393559,3438.6,3438.5,6.55341]
[1719873744241,0.21644636,3438.6,3438.5,6.55341]
[1719873744429,0.50337106,3438.6,3438.5,6.55341]
[1719873744631,2.43980911,3438.6,3438.5,6.55341]
[1719873744831,2.43980732,3438.6,3438.5,6.55341]
[1719873745037,2.94317795,3438.6,3438.5,6.55341]
[1719873745607,2.94317795,3438.6,3438.5,7.959251]
[1719873747211,0.32565065,3438.6,3438.5,7.959251]
[1719873747410,0.82901992,3438.6,3438.5,7.959251]
[1719873747615,2.94317088,3438.6,3438.5,7.959251]
[1719873750629,2.94309157,3438.6,3438.5,7.959251]
[1719873753938,2.94309603,3438.6,3438.5,7.959251]
[1719873756950,2.43973755,3438.6,3438.5,7.959251]
[1719873757158,2.9431356,3438.6,3438.5,7.959251]
[1719873757543,2.94312728,3438.6,3438.5,7.959251]
[1719873758753,2.94312728,3438.6,3438.5,2.142841]
[1719873758958,2.94312728,3438.6,3438.5,0.737]
[1719873760177,0.32565065,3438.6,3438.5,0.737]
[1719873760376,5.05720614,3438.6,3438.5,0.737]
[1719873760535,2.9431069,3438.6,3438.5,0.737]
[1719873763361,2.43974993,3438.6,3438.5,0.737]
[1719873763658,2.94310578,3438.6,3438.5,1.5612]
[1719873763861,0.2756465,3438.6,3438.5,6.9031]
[1719873764340,0.2756465,3438.6,3438.5,9.9031]
[1719873766441,7.48,3439.7,3438.5,9.9031]
[1719873766442,7.48,3439.7,3438.9,4.7919]
[1719873766776,2.07428871,3439.6,3439.4,0.737]
[1719873767071,2.07428871,3439.5,3439.4,0.737]
[1719873767236,0.50328862,3439.5,3439.4,0.737]
[1719873769660,4.6792,3439.9,3439.4,0.737]
[1719873769861,4.56727524,3439.8,3439.4,0.737]
[1719873770043,4.6792,3439.9,3439.4,0.737]
[1719873770044,2.07432353,3439.7,3439.4,0.737]
[1719873770245,2.07432378,3439.6,3439.4,0.737]
[1719873770577,0.50329843,3439.5,3439.4,0.737]
[1719873770959,0.50330251,3439.5,3439.4,0.737]
[1719873774058,4.6792,3439.9,3439.4,0.737]